Workbook

Sheet 操作方法
A1: 経営受託権に関する農地利用集積等促進計画の入力方法
A2: 基本事項
A3: 1 | B3: 契約書(様式第13号)を作成するためのデータは全て「入力シート」から入力ください。
A4: 2 | B4: 契約書(様式第13号)の印刷は「契約書印刷」で行います。
A5: 3 | B5: 「促進計画一覧表」は「入力シート」にデータを入力することで自動的に作成されます。この促進計画一覧表は契約書(様式第13号)と併せてバンクへ提出が必要です。
A6: 4 | B6: このExcelファイルは契約開始期毎に別ファイルとし，押印後の契約書(様式第13号)と併せて農地バンクへ提出ください（市町村でもファイルの保管をお願いします）。
A8: 入力・操作方法
B9: データは必ず「入力シート」から入力ください。
B10: ① | C10: 入力シートの「Ｆ３セル」に市町村名を入力します。
B11: ② | C11: Ｄ列に契約開始期をＲ〇.▲(〇年▲月)と入力します。
B12: ③ | C12: Ｅ列の整理番号の付与は次のようなルールとします（例：委託開始期が１月の場合100～スタート，12月の場合1200～スタート 各月最大100契約以内）。
B13: ④ | C13: 電話番号（Ｈ列とＫ列およびＡＥ列）は，契約書(様式第13号)および促進計画一覧表には表記されませんが事務連絡上必要となる場合がありますので入力ください。
B14: ⑤ | C14: Ｌ列の「地域計画」の欄は，経営委託する農地が地域計画内の農地であれば，リストから〇を選択してください。
B15: ⑥ | C15: Ｎ列の「字」がない場合は省略可
B16: ⑦ | C16: Ｑ列とＲ列の耕作面積と登記面積は，耕作面積を基本としますが，それに寄りがたい場合のみ登記面積も入力してください（備考欄に理由を簡潔に記入すること）。
B17: ⑧ | C17: Ｗ列の受託報酬額は，記載されている農地全体の受託報酬額を入力ください。
B18: ⑨ | C18: Ｘ～ＡＡ列の損益の支払い方法は，受託経費より農産物販売額が上回るか下回るかで支払い方法が異なるため注意して入力ください。
A20: 契約書(様式第13号)の印刷方法
B21: ① | C21: 印刷された契約書(様式第13号)と，このファイルの内容が異なることを防ぐため，印刷後の修正はしないでください。
B22: ② | C22: 「契約書印刷」シートを開き，「ＡＣ４セル」に印刷したい「入力シート」の整理番号(E列)を入力すると，入力シートから該当する整理番号のデータが転記されます。
B23: ③ | C23: Excelファイルの通常の印刷機能で，表示された契約書(様式第13号)を印刷します。以後，整理番号の入力と印刷を繰り返します。
A25: 促進計画一覧表
B26: 「入力シート」にデータを入力すれば自動的に「促進計画一覧表」シートにデータが転記されます。
B27: ① | C27: Ｂ列は整理番号ですので削除しないようご注意ください。

Sheet 入力シート
G1: 市町村毎の入力シート 兼 農地バンクの契約管理及び集計シート (経営受託権)
D3: 市町村名： | F3: 鹿児島市
B5: システム利用欄 | D5: 契約 開始期 | E5: 整理番号 | F5: 農業経営を委託する者(甲) | I5: 農業経営を受託する者(丙) | T5: 農業経営を委託する期間 | W5: 損益の決裁方法等 | AB5: 農地に関する甲以外の権限者 | AF5: 備 考 | AG5: 契約変更履歴等のメモ | AI5: プルダウンリスト(システム使用欄)
F6: 氏名・名称 | G6: 住所 | H6: 電話番号 | I6: 氏名・名称 | J6: 住所 | K6: 電話番号 | L6: 地域計画 （区域内は〇） | M6: 大字 | N6: 字 | O6: 地番 | P6: 現況地目 | Q6: 耕作面積 （㎡） | R6: 登記面積 （㎡） | S6: 利用目的 | T6: 依託の始期 | U6: 依託の終期 | V6: 契約期間 | W6: 受託報酬額 （円） | X6: 販売金額等＞受託経費の場合 | Z6: 販売金額等＜受託経費の場合 | AB6: 住 所 | AC6: 氏 名 | AD6: 権限の種類 | AE6: 電話番号
X7: 支払い方法 丙→甲 | Y7: 支払期限 (毎年●月末) | Z7: 支払い方法 甲→丙 | AA7: 支払期限 (毎年●月末)
B8: A | C8: =E8&B8 -> 100A | D8: R5.10 | E8: 100 | F8: 農地 太郎 | G8: 鹿児島市名山町１番１号 | H8: 099-000-0000 | I8: 耕地 大作 | J8: 鹿児島市鴨池新町10番１号 | K8: 099-000-0000 | L8: 〇 | M8: 名山町1 | N8: 名山堀1 | O8: 1001 | P8: 田 | Q8: 1101 | R8: 1000 | S8: 水田 | T8: 2023-10-01 | U8: 2038-09-30 | V8: =TEXT(DATEDIF(T8,(U8)+1,"y"),"0年;;")&TEXT(DATEDIF(T8,(U8)+1,"ym"),"0ヶ月;;") -> 15年 | W8: 150000 | X8: 現金払 | Y8: 11 | Z8: 口座振込 | AA8: 10 | AB8: 鹿児島市名山町4番1号 | AC8: 農地次郎 | AD8: 所有権 | AE8: 111-2222 | AI8: 1 | AJ8: 〇 | AK8: 田 | AL8: 現金払 | AM8: 所有権
B9: B | C9: =E8&B9 -> 100B | M9: 名山町2 | N9: 名山堀2 | O9: 1002 | P9: 田 | Q9: 1102 | R9: 1000 | S9: 水田 | AB9: 鹿児島市鴨池旧町10番 | AC9: 農地三郎 | AD9: 所有権 | AE9: 244-8888 | AI9: 2 | AK9: 畑 | AL9: 口座振込
B10: C | C10: =E8&B10 -> 100C | M10: 名山町3 | N10: 新田1 | O10: 1003 | P10: 畑 | Q10: 1103 | R10: 1000 | S10: 普通畑 | AI10: 3 | AK10: 樹園地
B11: D | C11: =E8&B11 -> 100D | M11: 名山町4 | N11: 新田2 | O11: 1004 | P11: 畑 | Q11: 1104 | R11: 1000 | S11: 普通畑 | AI11: 4
B12: E | C12: =E8&B12 -> 100E | M12: 名山町5 | N12: 新田3 | O12: 1005 | P12: 畑 | Q12: 1105 | R12: 1000 | S12: 普通畑 | AI12: 5
B13: F | C13: =E8&B13 -> 100F | M13: 名山町6 | N13: 新田4 | O13: 1006 | P13: 畑 | Q13: 600 | R13: 506 | S13: 施設用地
B14: G | C14: =E8&B14 -> 100G | M14: 名山町7 | N14: 新田5 | O14: 1007 | P14: 樹園地 | Q14: 600 | R14: 507 | S14: 樹園地 | AI14: 水田
B15: H | C15: =E8&B15 -> 100H | M15: 名山町8 | N15: 新田6 | O15: 1008 | P15: 田 | Q15: 600 | R15: 508 | S15: 水田 | AI15: 普通畑
B16: I | C16: =E8&B16 -> 100I | M16: 名山町9 | N16: 新田7 | O16: 1009 | P16: 畑 | Q16: 600 | R16: 509 | S16: 普通畑 | AI16: 樹園地
B17: J | C17: =E8&B17 -> 100J | M17: 名山町10 | N17: 新田8 | O17: 1010 | P17: 樹園地 | Q17: 600 | R17: 510 | S17: 施設用地 | AI17: 施設用地
B18: A | C18: =E18&B18 -> 101A | D18: R5.10 | E18: 101 | F18: 名山 太郎 | G18: 鹿児島市山下町2番2号 | H18: 099-000-0000 | I18: 名山 大作 | J18: 鹿児島市西田10番１号 | K18: 099-000-0000 | M18: 東開町1 | N18: 山田1 | O18: 2001 | P18: 田 | Q18: 1000 | S18: 施設用地 | T18: 2023-10-01 | U18: 2038-09-30 | V18: =TEXT(DATEDIF(T18,(U18)+1,"y"),"0年;;")&TEXT(DATEDIF(T18,(U18)+1,"ym"),"0ヶ月;;") -> 15年 | W18: 80000 | X18: 口座振込 | Y18: 5 | Z18: 現金払 | AA18: 11 | AB18: 薩摩川内市名山町4番1号 | AC18: 耕地次郎 | AD18: 所有権
B19: B | C19: =E18&B19 -> 101B | M19: 東開町2 | N19: 山田2 | O19: 2002 | P19: 田 | Q19: 1600 | S19: 普通畑 | AB19: 薩摩川内市鴨池旧町10番 | AC19: 耕地三郎 | AD19: 所有権
B20: C | C20: =E18&B20 -> 101C | M20: 東開町3 | N20: 山田3 | O20: 2003 | P20: 畑 | Q20: 1700 | S20: 水田 | AB20: 東京都 | AC20: 耕地花子 | AD20: 所有権 | AE20: 666-6666
B21: D | C21: =E18&B21 -> 101D | M21: 東開町4 | N21: 山田4 | O21: 2004 | P21: 畑 | Q21: 1800 | S21: 水田 | AB21: 大阪市 | AC21: 耕地友里恵 | AD21: 所有権
B22: E | C22: =E18&B22 -> 101E | M22: 東開町5 | N22: 山田5 | O22: 2005 | P22: 樹園地 | Q22: 1900 | S22: 普通畑
B23: F | C23: =E18&B23 -> 101F | M23: 東開町6 | N23: 山田6 | O23: 2006 | P23: 樹園地 | Q23: 2000 | S23: 水田
B24: G | C24: =E18&B24 -> 101G | M24: 東開町7 | N24: 山田7 | O24: 2007 | P24: 田 | Q24: 2100 | S24: 施設用地
B25: H | C25: =E18&B25 -> 101H | M25: 東開町8 | N25: 山田8 | O25: 2008 | P25: 畑 | Q25: 2200 | S25: 樹園地
B26: I | C26: =E18&B26 -> 101I | M26: 東開町9 | N26: 山田9 | O26: 2009 | P26: 樹園地 | Q26: 2300 | S26: 水田
B27: J | C27: =E18&B27 -> 101J | M27: 東開町10 | N27: 山田10 | O27: 2010 | P27: 田 | Q27: 2400 | S27: 水田
B28: A | C28: =E28&B28 -> 102A | D28: R5.10 | E28: 102 | F28: 農地 太郎 | G28: 鹿児島市名山町2番2号 | H28: 099-000-0000 | I28: 耕地 大作 | J28: 鹿児島市鴨池新町10番2号 | K28: 099-000-0000 | L28: 〇 | M28: 名山町1 | N28: 名山堀1 | O28: 1001 | P28: 田 | Q28: 1101 | R28: 1200 | S28: 水田 | T28: 2023-10-01 | U28: 2038-09-30 | V28: =TEXT(DATEDIF(T28,(U28)+1,"y"),"0年;;")&TEXT(DATEDIF(T28,(U28)+1,"ym"),"0ヶ月;;") -> 15年 | W28: 124000 | X28: 現金払 | Y28: 9 | Z28: 口座振込 | AA28: 12 | AB28: 鹿児島市名山町4番1号 | AC28: 農地次郎 | AD28: 所有権 | AE28: 111-2222
B29: B | C29: =E28&B29 -> 102B | M29: 名山町2 | N29: 名山堀2 | O29: 1002 | P29: 田 | Q29: 1102 | R29: 1300 | S29: 水田 | AB29: 鹿児島市鴨池旧町10番 | AC29: 農地三郎 | AD29: 永小作権 | AE29: 244-8888
B30: C | C30: =E28&B30 -> 102C | M30: 名山町3 | N30: 新田1 | O30: 1003 | P30: 畑 | Q30: 1103 | S30: 普通畑
B31: D | C31: =E28&B31 -> 102D | M31: 名山町4 | N31: 新田2 | O31: 1004 | P31: 畑 | Q31: 1104 | S31: 普通畑
B32: E | C32: =E28&B32 -> 102E | M32: 名山町5 | N32: 新田3 | O32: 1005 | P32: 畑 | Q32: 1105 | S32: 普通畑
B33: F | C33: =E28&B33 -> 102F | M33: 名山町6 | N33: 新田4 | O33: 1006 | P33: 畑 | Q33: 506 | S33: 施設用地
B34: G | C34: =E28&B34 -> 102G | M34: 名山町7 | N34: 新田5 | O34: 1007 | P34: 樹園地 | Q34: 507 | S34: 樹園地
B35: H | C35: =E28&B35 -> 102H | M35: 名山町8 | N35: 新田6 | O35: 1008 | P35: 田 | Q35: 508 | S35: 水田
B36: I | C36: =E28&B36 -> 102I
B37: J | C37: =E28&B37 -> 102J
B38: A | C38: =E38&B38 -> 103A | D38: R5.10 | E38: 103 | V38: =TEXT(DATEDIF(T38,(U38)+1,"y"),"0年;;")&TEXT(DATEDIF(T38,(U38)+1,"ym"),"0ヶ月;;") -> 
B39: B | C39: =E38&B39 -> 103B
B40: C | C40: =E38&B40 -> 103C
B41: D | C41: =E38&B41 -> 103D
B42: E | C42: =E38&B42 -> 103E
B43: F | C43: =E38&B43 -> 103F
B44: G | C44: =E38&B44 -> 103G
B45: H | C45: =E38&B45 -> 103H
B46: I | C46: =E38&B46 -> 103I
B47: J | C47: =E38&B47 -> 103J
B48: A | C48: =E48&B48 -> A | V48: =TEXT(DATEDIF(T48,(U48)+1,"y"),"0年;;")&TEXT(DATEDIF(T48,(U48)+1,"ym"),"0ヶ月;;") -> 
B49: B | C49: =E48&B49 -> B
B50: C | C50: =E48&B50 -> C
B51: D | C51: =E48&B51 -> D
B52: E | C52: =E48&B52 -> E
B53: F | C53: =E48&B53 -> F
B54: G | C54: =E48&B54 -> G
B55: H | C55: =E48&B55 -> H
B56: I | C56: =E48&B56 -> I
B57: J | C57: =E48&B57 -> J
B58: A | C58: =E58&B58 -> A | V58: =TEXT(DATEDIF(T58,(U58)+1,"y"),"0年;;")&TEXT(DATEDIF(T58,(U58)+1,"ym"),"0ヶ月;;") -> 
B59: B | C59: =E58&B59 -> B
B60: C | C60: =E58&B60 -> C
B61: D | C61: =E58&B61 -> D
B62: E | C62: =E58&B62 -> E
B63: F | C63: =E58&B63 -> F
B64: G | C64: =E58&B64 -> G
B65: H | C65: =E58&B65 -> H
B66: I | C66: =E58&B66 -> I
B67: J | C67: =E58&B67 -> J
B68: A | C68: =E68&B68 -> A | V68: =TEXT(DATEDIF(T68,(U68)+1,"y"),"0年;;")&TEXT(DATEDIF(T68,(U68)+1,"ym"),"0ヶ月;;") -> 
B69: B | C69: =E68&B69 -> B
B70: C | C70: =E68&B70 -> C
B71: D | C71: =E68&B71 -> D
B72: E | C72: =E68&B72 -> E
B73: F | C73: =E68&B73 -> F
B74: G | C74: =E68&B74 -> G
B75: H | C75: =E68&B75 -> H
B76: I | C76: =E68&B76 -> I
B77: J | C77: =E68&B77 -> J
B78: A | C78: =E78&B78 -> A | V78: =TEXT(DATEDIF(T78,(U78)+1,"y"),"0年;;")&TEXT(DATEDIF(T78,(U78)+1,"ym"),"0ヶ月;;") -> 
B79: B | C79: =E78&B79 -> B
B80: C | C80: =E78&B80 -> C
B81: D | C81: =E78&B81 -> D
B82: E | C82: =E78&B82 -> E
B83: F | C83: =E78&B83 -> F
B84: G | C84: =E78&B84 -> G
B85: H | C85: =E78&B85 -> H
B86: I | C86: =E78&B86 -> I
B87: J | C87: =E78&B87 -> J
H92: この表に求められる仕様
I93: ①契約の管理をするのに必要十分な内容で，検索がし易いか？
I94: ②市町村が入力し易いか？
I95: ③農地バンクの事務上のニーズ
J96: 書類の郵送を想定していないので郵便番号がないが大丈夫か？
J97: 国・県への報告で求められる集計項目の集計ができるか？
J98: 契約筆数，委託者数，受託者数，契約面積（登記・実測？），契約金額 この表のままでは集計できない項目がある。
J99: この表は，市町村毎の申請期毎の表が想定されているが，全ての申請期とすべての市町村をまとめて集計するのに簡便であるか？
J100: 解約した契約は記録として残すのか，削除するのか？

Sheet 契約書印刷
B2: （様式第13号） | D2: 農用地利用集積等促進計画（経営受託権） | AF2: システム使用欄
B4: １ 各筆明細 | D4: 農地の所在地 | G4: =入力シート!F3 -> 鹿児島市 | Y4: 契約開始期 | Z4: =VLOOKUP(AF4,入力シート!C:D,2,FALSE) -> R5.10 | AA4: 整理番号 | AC4: 101 | AF4: =$AC$4&"A" -> 101A | AG4: =VLOOKUP($AF$4,入力シート!$C:$AG,10,FALSE) -> 0
B5: =IF(AG4="〇","☑ 地域計画","☐ 地域計画") -> ☐ 地域計画 | C5: =IF(#REF!="○","☑ 現金払","☐ 現金払") ->  | D5: 農地中間管理機構に権利の設定をする者（農業経営の委託をする者）の氏名または名称（甲） | J5: =VLOOKUP(AF4,入力シート!C:AF,4,FALSE) -> 名山 太郎 | Q5: この計画に同意する。 | S5: 住所 | U5: =VLOOKUP(AF4,入力シート!C:AF,5,FALSE) -> 鹿児島市山下町2番2号 | AF5: =$AC$4&"B" -> 101B
Q6: 〔同意印〕 | AF6: =$AC$4&"C" -> 101C | AG6: =VLOOKUP($AF$4,入力シート!$C:$AF,13,FALSE) -> 2001
D7: 鹿児島県農地中間管理機構（乙） | J7: 公益財団法人 鹿児島県地域振興公社 理事長 満薗 秀彦 | Q7: この計画に同意する。 | S7: 住所 | U7: 鹿児島市名山町４番３号 | AF7: =$AC$4&"D" -> 101D
Q8: 〔同意印〕 | AF8: =$AC$4&"E" -> 101E
D9: 農地中間管理機構から権利の設定を受ける者（農業経営の委託を受ける者）の氏名または名称（丙） | J9: =VLOOKUP(AF4,入力シート!C:AF,7,FALSE) -> 名山 大作 | Q9: この計画に同意する。 | S9: 住所 | U9: =VLOOKUP(AF4,入力シート!C:AF,8,FALSE) -> 鹿児島市西田10番１号 | AF9: =$AC$4&"F" -> 101F
Q10: 〔同意印〕 | AF10: =$AC$4&"G" -> 101G
B11: 権利の設定をする土地（Ａ） | I11: （甲）→（乙），（乙）→（丙）に 設定される権利（Ｂ） | M11: 損益の算定基準，決済方法等（Ｃ） | Y11: 備 考 | AF11: =$AC$4&"H" -> 101H
B12: 所 在 | E12: 現 況 地 目 | F12: 耕作面積(㎡) | I12: 利用目的 | J12: 始 期 | K12: 終 期 | L12: 存続期間 | M12: 損益の算定基準の計算方法および 受託報酬額（円） | Q12: 販売金額が受託経費 を上回った場合 | U12: 販売金額が受託経費 を下回った場合 | AF12: =$AC$4&"I" -> 101I
B13: 大 字 | C13: 字 | D13: 地 番 | F13: ( | G13: 登記面積 | H13: ) | Q13: 支払人 | R13: 相手方 | T13: 決済方法 支払期限 | U13: 支払人 | V13: 相手方 | W13: 決済方法 支払期限 | AF13: =$AC$4&"J" -> 101J
B14: =VLOOKUP($AF$4,入力シート!$C:$AF,11,FALSE) -> 東開町1 | C14: =VLOOKUP($AF$4,入力シート!$C:$AF,12,FALSE) -> 山田1 | D14: =VLOOKUP($AF$4,入力シート!$C:$AF,13,FALSE) -> 2001 | E14: =VLOOKUP($AF$4,入力シート!$C:$AF,14,FALSE) -> 田 | F14: =VLOOKUP($AF$4,入力シート!$C:$AF,15,FALSE) -> 1000 | I14: =VLOOKUP($AF$4,入力シート!$C:$AF,17,FALSE) -> 施設用地 | J14: =VLOOKUP($AF$4,入力シート!$C:$AF,18,FALSE) -> 2023-10-01 | K14: =VLOOKUP($AF$4,入力シート!$C:$AF,19,FALSE) -> 2038-09-30 | L14: =VLOOKUP($AF$4,入力シート!$C:$AF,20,FALSE) -> 15年 | M14: ３ 共通事項（７）に記載のとおり 「受託農業経営に係る販売金額（共済金等を含む。）」 －「受託農業経営に係る受託経費（受託報酬を含む）」 | Q14: 丙 | R14: 甲 | T14: =VLOOKUP($AF$4,入力シート!$C:$AF,22,FALSE) -> 口座振込 | U14: 甲 | V14: 丙 | W14: =VLOOKUP($AF$4,入力シート!$C:$AF,24,FALSE) -> 現金払 | X14: =VLOOKUP($AF$4,入力シート!$C:$AF,22,FALSE) -> 口座振込 | Y14: =VLOOKUP($AF$4,入力シート!$C:$AF,30,FALSE) -> 0
F15: ( | G15: =VLOOKUP($AF$4,入力シート!$C:$AF,16,FALSE) -> 0 | H15: )
B16: =VLOOKUP($AF$5,入力シート!$C:$AF,11,FALSE) -> 東開町2 | C16: =VLOOKUP($AF$5,入力シート!$C:$AF,12,FALSE) -> 山田2 | D16: =VLOOKUP($AF$5,入力シート!$C:$AF,13,FALSE) -> 2002 | E16: =VLOOKUP($AF$5,入力シート!$C:$AF,14,FALSE) -> 田 | F16: =VLOOKUP($AF$5,入力シート!$C:$AF,15,FALSE) -> 1600 | I16: =VLOOKUP($AF$5,入力シート!$C:$AF,17,FALSE) -> 普通畑 | Y16: =VLOOKUP($AF$5,入力シート!$C:$AF,30,FALSE) -> 0
F17: ( | G17: =VLOOKUP($AF$5,入力シート!$C:$AF,16,FALSE) -> 0 | H17: )
B18: =VLOOKUP($AF$6,入力シート!$C:$AF,11,FALSE) -> 東開町3 | C18: =VLOOKUP($AF$6,入力シート!$C:$AF,12,FALSE) -> 山田3 | D18: =VLOOKUP($AF$6,入力シート!$C:$AF,13,FALSE) -> 2003 | E18: =VLOOKUP($AF$6,入力シート!$C:$AF,14,FALSE) -> 畑 | F18: =VLOOKUP($AF$6,入力シート!$C:$AF,15,FALSE) -> 1700 | I18: =VLOOKUP($AF$6,入力シート!$C:$AF,17,FALSE) -> 水田 | Y18: =VLOOKUP($AF$6,入力シート!$C:$AF,30,FALSE) -> 0
F19: ( | G19: =VLOOKUP($AF$6,入力シート!$C:$AF,16,FALSE) -> 0 | H19: )
B20: =VLOOKUP($AF$7,入力シート!$C:$AF,11,FALSE) -> 東開町4 | C20: =VLOOKUP($AF$7,入力シート!$C:$AF,12,FALSE) -> 山田4 | D20: =VLOOKUP($AF$7,入力シート!$C:$AF,13,FALSE) -> 2004 | E20: =VLOOKUP($AF$7,入力シート!$C:$AF,14,FALSE) -> 畑 | F20: =VLOOKUP($AF$7,入力シート!$C:$AF,15,FALSE) -> 1800 | I20: =VLOOKUP($AF$7,入力シート!$C:$AF,17,FALSE) -> 水田 | T20: =VLOOKUP($AF$4,入力シート!$C:$AF,23,FALSE) -> 5 | W20: =VLOOKUP($AF$4,入力シート!$C:$AF,25,FALSE) -> 11 | X20: =VLOOKUP($AF$4,入力シート!$C:$AF,23,FALSE) -> 5 | Y20: =VLOOKUP($AF$7,入力シート!$C:$AF,30,FALSE) -> 0
F21: ( | G21: =VLOOKUP($AF$7,入力シート!$C:$AF,16,FALSE) -> 0 | H21: )
B22: =VLOOKUP($AF$8,入力シート!$C:$AF,11,FALSE) -> 東開町5 | C22: =VLOOKUP($AF$8,入力シート!$C:$AF,12,FALSE) -> 山田5 | D22: =VLOOKUP($AF$8,入力シート!$C:$AF,13,FALSE) -> 2005 | E22: =VLOOKUP($AF$8,入力シート!$C:$AF,14,FALSE) -> 樹園地 | F22: =VLOOKUP($AF$8,入力シート!$C:$AF,15,FALSE) -> 1900 | I22: =VLOOKUP($AF$8,入力シート!$C:$AF,17,FALSE) -> 普通畑 | Y22: =VLOOKUP($AF$8,入力シート!$C:$AF,30,FALSE) -> 0
F23: ( | G23: =VLOOKUP($AF$8,入力シート!$C:$AF,16,FALSE) -> 0 | H23: )
B24: =VLOOKUP($AF$9,入力シート!$C:$AF,11,FALSE) -> 東開町6 | C24: =VLOOKUP($AF$9,入力シート!$C:$AF,12,FALSE) -> 山田6 | D24: =VLOOKUP($AF$9,入力シート!$C:$AF,13,FALSE) -> 2006 | E24: =VLOOKUP($AF$9,入力シート!$C:$AF,14,FALSE) -> 樹園地 | F24: =VLOOKUP($AF$9,入力シート!$C:$AF,15,FALSE) -> 2000 | I24: =VLOOKUP($AF$9,入力シート!$C:$AF,17,FALSE) -> 水田 | Y24: =VLOOKUP($AF$9,入力シート!$C:$AF,30,FALSE) -> 0
F25: ( | G25: =VLOOKUP($AF$9,入力シート!$C:$AF,16,FALSE) -> 0 | H25: )
B26: =VLOOKUP($AF$10,入力シート!$C:$AF,11,FALSE) -> 東開町7 | C26: =VLOOKUP($AF$10,入力シート!$C:$AF,12,FALSE) -> 山田7 | D26: =VLOOKUP($AF$10,入力シート!$C:$AF,13,FALSE) -> 2007 | E26: =VLOOKUP($AF$10,入力シート!$C:$AF,14,FALSE) -> 田 | F26: =VLOOKUP($AF$10,入力シート!$C:$AF,15,FALSE) -> 2100 | I26: =VLOOKUP($AF$10,入力シート!$C:$AF,17,FALSE) -> 施設用地 | Y26: =VLOOKUP($AF$10,入力シート!$C:$AF,30,FALSE) -> 0
F27: ( | G27: =VLOOKUP($AF$10,入力シート!$C:$AF,16,FALSE) -> 0 | H27: ) | M27: ※受託報酬額
B28: =VLOOKUP($AF$11,入力シート!$C:$AF,11,FALSE) -> 東開町8 | C28: =VLOOKUP($AF$11,入力シート!$C:$AF,12,FALSE) -> 山田8 | D28: =VLOOKUP($AF$11,入力シート!$C:$AF,13,FALSE) -> 2008 | E28: =VLOOKUP($AF$11,入力シート!$C:$AF,14,FALSE) -> 畑 | F28: =VLOOKUP($AF$11,入力シート!$C:$AF,15,FALSE) -> 2200 | I28: =VLOOKUP($AF$11,入力シート!$C:$AF,17,FALSE) -> 樹園地 | M28: =VLOOKUP($AF$4,入力シート!$C:$AF,21,FALSE) -> 80000 | O28: 円 | Y28: =VLOOKUP($AF$11,入力シート!$C:$AF,30,FALSE) -> 0
F29: ( | G29: =VLOOKUP($AF$11,入力シート!$C:$AF,16,FALSE) -> 0 | H29: ) | M29: 損益に関する支払いは(甲)と(丙)で行い，(乙)は関与しない。
B30: =VLOOKUP($AF$12,入力シート!$C:$AF,11,FALSE) -> 東開町9 | C30: =VLOOKUP($AF$12,入力シート!$C:$AF,12,FALSE) -> 山田9 | D30: =VLOOKUP($AF$12,入力シート!$C:$AF,13,FALSE) -> 2009 | E30: =VLOOKUP($AF$12,入力シート!$C:$AF,14,FALSE) -> 樹園地 | F30: =VLOOKUP($AF$12,入力シート!$C:$AF,15,FALSE) -> 2300 | I30: =VLOOKUP($AF$12,入力シート!$C:$AF,17,FALSE) -> 水田 | Y30: =VLOOKUP($AF$12,入力シート!$C:$AF,30,FALSE) -> 0
F31: ( | G31: =VLOOKUP($AF$12,入力シート!$C:$AF,16,FALSE) -> 0 | H31: )
B32: =VLOOKUP($AF$13,入力シート!$C:$AF,11,FALSE) -> 東開町10 | C32: =VLOOKUP($AF$13,入力シート!$C:$AF,12,FALSE) -> 山田10 | D32: =VLOOKUP($AF$13,入力シート!$C:$AF,13,FALSE) -> 2010 | E32: =VLOOKUP($AF$13,入力シート!$C:$AF,14,FALSE) -> 田 | F32: =VLOOKUP($AF$13,入力シート!$C:$AF,15,FALSE) -> 2400 | I32: =VLOOKUP($AF$13,入力シート!$C:$AF,17,FALSE) -> 水田 | Y32: =VLOOKUP($AF$13,入力シート!$C:$AF,30,FALSE) -> 0
F33: ( | G33: =VLOOKUP($AF$13,入力シート!$C:$AF,16,FALSE) -> 0 | H33: )
B34: 合 計 | F34: =SUM(G14,F16,F18,G20,F22,G24,G26,G28,G30,G32) -> 5200
F35: ( | G35: =SUM(G15+G17+G19+G21+G23+G25+G27)+G29+G29+G31+G33 -> 0 | H35: )
B36: ２ 権利の設定をする土地の（甲）以外の権原者（Ｄ）
B37: 住 所 | I37: 氏名又は名称 | L37: 権原の種類 | N37: この計画に同意する。 | P37: 住 所 | W37: 氏名又は名称 | Z37: 権原の種類 | AB37: この計画に同意する。
B38: =VLOOKUP($AF$4,入力シート!$C:$AF,26,FALSE) -> 薩摩川内市名山町4番1号 | I38: =VLOOKUP($AF$4,入力シート!$C:$AF,27,FALSE) -> 耕地次郎 | L38: =VLOOKUP($AF$4,入力シート!$C:$AF,28,FALSE) -> 所有権 | N38: 〔同意印〕 | P38: =VLOOKUP($AF$6,入力シート!$C:$AF,26,FALSE) -> 東京都 | W38: =VLOOKUP($AF$6,入力シート!$C:$AF,27,FALSE) -> 耕地花子 | Z38: =VLOOKUP($AF$6,入力シート!$C:$AF,28,FALSE) -> 所有権 | AB38: 〔同意印〕
B39: =VLOOKUP($AF$5,入力シート!$C:$AF,26,FALSE) -> 薩摩川内市鴨池旧町10番 | I39: =VLOOKUP($AF$5,入力シート!$C:$AF,27,FALSE) -> 耕地三郎 | L39: =VLOOKUP($AF$5,入力シート!$C:$AF,28,FALSE) -> 所有権 | N39: 〔同意印〕 | P39: =VLOOKUP($AF$7,入力シート!$C:$AF,26,FALSE) -> 大阪市 | W39: =VLOOKUP($AF$7,入力シート!$C:$AF,27,FALSE) -> 耕地友里恵 | Z39: =VLOOKUP($AF$7,入力シート!$C:$AF,28,FALSE) -> 所有権 | AB39: 〔同意印〕
B44: ３ 記載注意 | Q44: （５）収穫物の所有権
B45: （１）この各筆明細により設定する権利は経営受託権（農業の経営に委託を受けることにより取得される使用及び収益を目 | Q45: 受託農業経営の事業により生ずる収穫物の所有権は，丙に帰属する。
B46: 的とする権利）とする。 | Q46: （６）受託農業経営に係る損益の帰属
B47: （２）この各筆明細は３部作成し，各当事者が保管する。 | Q47: 受託農業経営に係る損益は，甲に帰属する（減収の場合の危険負担は，甲が負う）。
B48: （３）地域計画の区域内であれば，☑を付ける。 | Q48: （７）受託農業経営に係る損益の算定基準（計算方法）
B49: （４）（Ａ）欄の「耕作面積」で，耕作面積と登記面積が異なる場合のみ，（ ）内に登記面積を記載する。 | Q49: ア 受託農業経営に係る損益は，次に掲げる算式により計算するものとする。「受託農業経営に係る販売金額（共済
B50: （５）（Ｂ）欄の「利用目的」は，当該土地の利用目的（例えば，水田として利用，普通畑として利用，樹園地として利用， | Q50: 金等を含む。）」－「受託農業経営に係る受託経費（受託報酬を含む。なお，報酬額は甲及び丙が協議して定める）」
B51: 農業用施設用地として利用等）を記載する。 | Q51: イ 丙は，受託農業経営に係る収支の内訳を整理し記録する。
B52: （６）（Ｂ）欄の「存続期間」は，「○年」と記載する。 | Q52: （８）修繕及び改良
B53: （７）（Ｄ）欄の「権利を設定する土地の（甲）以外の権限者」は，該当者がいない場合は記入を要しない。 | Q53: ア 甲は，乙及び丙の責めに帰することができない事由により生じた当該土地の損耗について，自らの費用と責任にお
Q54: いて修繕する。ただし，緊急を要するときその他甲において修繕することができない場合で甲の同意を得たときは，
B55: ４ 共通事項 | Q55: 乙又は丙が修繕することができる。この場合において，乙又は丙が修繕の費用を支出したときは，甲に対して，その
B56: この農用地利用集積等促進計画（以下「本計画」という。）の定めるところにより設定される農業の経営の委託を受ける | Q56: 費用の償還を請求することができる。
B57: ことにより取得される使用及び収益を目的とする権利（以下「経営受託権」という。）は，１の各筆明細に定めるもののほ | Q57: イ 乙又は丙は，甲の同意を得て当該土地の改良を行うことができる。ただし，その改良が軽微である場合には，甲の
B58: か，次に定めるところによる。 | Q58: 同意を要しない。
B59: なお，農地中間管理機構（以下「乙」という。）から権利の設定を受ける者（以下「丙」という。）が農業協同組合又は | Q59: （９）附属物の設置等
B60: 農事組合法人である場合には，このほか当該農業協同組合又は農事組合法人が定める農業経営受託規程によるものとする。 | Q60: 甲又は乙は，丙から当該土地に果樹等の永年性作物，ハウス等の農業用施設（以下「附属物」という。）の設置を求
B61: （１）経営受託権の設定 | Q61: められた場合には，市町村及び農業委員会に事前に相談を行わなければならない。また，甲及び丙は，乙に対し附属物
B62: １の各筆明細に記載された土地（以下「当該土地」という。）の経営受託権は，本計画の公告により，本計画が定める | Q62: に関する責務を負わせない旨の内容を含む確認書等を作成したうえで，その写しを乙に提出しなければならない。
B63: ところによる農業の経営の委託が行われ設定される。 | Q63: （10）農業経営の状況の報告
B64: （２）委託の解除・解約 | Q64: 丙は受託した農業経営の経過及び結果を書面等により記録するものとする。また，丙は受託した農業経営の一切が完
B65: ア 乙は，次のいずれかに該当するときは，県知事の承認を受けて，乙が乙に権利の設定をする者（以下「甲」という。 | Q65: 了した場合には，その経過及び結果を書面等により甲に報告するものとする。
B66: ）から受けた農業経営の委託を解除することができる。 | Q66: （11）農業経営の委託に伴う対価に関する債権及び債務の取り扱い
B67: （ア）農業経営等の委託を受けてもなお当該農用地の農業経営等の委託を行うことができないとき。 | Q67: 本計画により委託される農業経営の対価に関する債権及び債務は，甲と丙の間で存在し，乙は対価の受領及び支払い
B68: （イ）農業経営等の委託が終了してもなお当該農用地の農業経営等の委託を行うことができないとき。 | Q68: に関する一切の債権及び債務を有しない。
B69: （ウ）災害その他の事由により農用地等としての利用を継続することが著しく困難となったとき。 | Q69: （12）租税公課等の負担
B70: イ 乙は，丙が次のいずれかに該当するときは県知事の承認を受けて，乙が丙に行った農業経営の委託を解除することが | Q70: ア 甲は，当該土地に係る固定資産税その他の租税を負担する。
B71: できる。 | Q71: イ 当該土地に係る土地改良区の賦課金の負担については，原則として特別賦課金は甲が負担し，経常賦課金は丙が負
B72: （ア）当該土地を適正に利用していないと認められるとき。 | Q72: 担するものとするが，そうでない場合は，甲と丙とで協議の上，定める。
B73: （イ）正当な理由がなく農地中間管理事業の推進に関する法律（平成 25 年法律第 101 号）第21条第１項の規定による | Q73: ウ 作付しない期間等に係る当該土地の維持管理に要する経費は，受託農業経営に係る受託経費に含め，甲が負担する。
B74: 報告をしないとき。 | Q74: （13）農地中間管理機構関連農地整備事業の実施
B75: ウ １の 各筆明細に定める経営受託権の存続期間の途中において，やむを得ない理由で解約しようとする場合には，解 | Q75: 当該土地のうち，15 年以上の期間で農地中間管理権が設定されているものについては，土地改良法第87条の３第１
B76: 約希望日の3か月以上前までに書類による申し出を行い，甲，乙，丙の同意により解約することができる。 | Q76: 項の土地改良事業が行われることがある。
B77: エ 甲と乙又は乙と丙の一方で解除・解約が成立した場合，その効力はもう一方の乙と丙又は甲と乙にも及ぶ。 | Q77: （14）その他
B78: （３）善管注意義務 | Q78: 本計画に定めのない事項及び本計画に疑義が生じたときは，甲，乙及び丙が協議する。
B79: 丙は，善良なる管理者の注意をもって甲が最も収益を得られるように努めるものとする。
B80: （４）主宰権
B81: 委託を受けて行う農業の経営（以下「受託農業経営」という。）の運営に関する事項（（９）附属物の設置等を除く。
B82: )の全ては，丙が決定する。

Sheet 促進計画一覧表
D1: 農用地利用集積等促進計画一覧表（経営受託権）
C2: 市町村名： | D2: =入力シート!F3 -> 鹿児島市
B3: No | C3: 対象農地 | I3: 設定される権利の内容 | M3: 損益について | V3: 農業経営を委託する者(甲) | X3: 農業経営を受託する者(丙)
C4: 大字 | D4: 字 | E4: 地番 | F4: 地目 | G4: 面積(㎡) | I4: 利用目的 | J4: 始期 | K4: 終期 | L4: 存続期間 | M4: 損益の算定基準 | N4: 販売金額＞受託経費の場合 | R4: 販売金額＜受託経費の場合 | V4: 氏名・名称 | W4: 住所 | X4: 氏名・名称 | Y4: 住所
G5: 耕作面積 | H5: 登記面積 | N5: 支払人 | O5: 相手方 | P5: 決裁方法 | Q5: 支払期限 | R5: 支払人 | S5: 相手方 | T5: 決裁方法 | U5: 支払期限
B6: 1 | C6: =IF(入力シート!M8="","",入力シート!M8) -> 名山町1 | D6: =IF(入力シート!N8="","",入力シート!N8) -> 名山堀1 | E6: =IF(入力シート!O8="","",入力シート!O8) -> 1001 | F6: =IF(入力シート!P8="","",入力シート!P8) -> 田 | G6: =IF(入力シート!Q8="","",入力シート!Q8) -> 1101 | H6: =IF(入力シート!R8="","",入力シート!R8) -> 1000 | I6: =IF(入力シート!S8="","",入力シート!S8) -> 水田 | J6: =IF(入力シート!T8="","",入力シート!T8) -> 2023-10-01 | K6: =IF(入力シート!U8="","",入力シート!U8) -> 2038-09-30 | L6: =IF(入力シート!V8="","",入力シート!V8) -> 15年 | M6: =IF(C6="","","受託報酬額(円)") -> 受託報酬額(円) | N6: =IF(C6="","","丙") -> 丙 | O6: =IF(C6="","","甲") -> 甲 | P6: =IF(入力シート!X8="","",入力シート!X8) -> 現金払 | Q6: =IF(入力シート!Y8="","",入力シート!Y8) -> 11 | R6: =IF(C6="","","甲") -> 甲 | S6: =IF(C6="","","丙") -> 丙 | T6: =IF(入力シート!Z8="","",入力シート!Z8) -> 口座振込 | U6: =IF(入力シート!AA8="","",入力シート!AA8) -> 10 | V6: =IF(入力シート!F8="","",入力シート!F8) -> 農地 太郎 | W6: =IF(入力シート!G8="","",入力シート!G8) -> 鹿児島市名山町１番１号 | X6: =IF(入力シート!I8="","",入力シート!I8) -> 耕地 大作 | Y6: =IF(入力シート!J8="","",入力シート!J8) -> 鹿児島市鴨池新町10番１号
B7: 2 | C7: =IF(入力シート!M9="","",入力シート!M9) -> 名山町2 | D7: =IF(入力シート!N9="","",入力シート!N9) -> 名山堀2 | E7: =IF(入力シート!O9="","",入力シート!O9) -> 1002 | F7: =IF(入力シート!P9="","",入力シート!P9) -> 田 | G7: =IF(入力シート!Q9="","",入力シート!Q9) -> 1102 | H7: =IF(入力シート!R9="","",入力シート!R9) -> 1000 | I7: =IF(入力シート!S9="","",入力シート!S9) -> 水田 | M7: =IF(C6="","",入力シート!W8) -> 150000
B8: 3 | C8: =IF(入力シート!M10="","",入力シート!M10) -> 名山町3 | D8: =IF(入力シート!N10="","",入力シート!N10) -> 新田1 | E8: =IF(入力シート!O10="","",入力シート!O10) -> 1003 | F8: =IF(入力シート!P10="","",入力シート!P10) -> 畑 | G8: =IF(入力シート!Q10="","",入力シート!Q10) -> 1103 | H8: =IF(入力シート!R10="","",入力シート!R10) -> 1000 | I8: =IF(入力シート!S10="","",入力シート!S10) -> 普通畑 | M8: =IF(C6="","","「受託農業経営に係る販売金額」－「受託農業経営に係る受託経費」 共通事項(7)に記載のとおり") -> 「受託農業経営に係る販売金額」－「受託農業経営に係る受託経費」 共通事項(7)に記載のとおり
B9: 4 | C9: =IF(入力シート!M11="","",入力シート!M11) -> 名山町4 | D9: =IF(入力シート!N11="","",入力シート!N11) -> 新田2 | E9: =IF(入力シート!O11="","",入力シート!O11) -> 1004 | F9: =IF(入力シート!P11="","",入力シート!P11) -> 畑 | G9: =IF(入力シート!Q11="","",入力シート!Q11) -> 1104 | H9: =IF(入力シート!R11="","",入力シート!R11) -> 1000 | I9: =IF(入力シート!S11="","",入力シート!S11) -> 普通畑
B10: 5 | C10: =IF(入力シート!M12="","",入力シート!M12) -> 名山町5 | D10: =IF(入力シート!N12="","",入力シート!N12) -> 新田3 | E10: =IF(入力シート!O12="","",入力シート!O12) -> 1005 | F10: =IF(入力シート!P12="","",入力シート!P12) -> 畑 | G10: =IF(入力シート!Q12="","",入力シート!Q12) -> 1105 | H10: =IF(入力シート!R12="","",入力シート!R12) -> 1000 | I10: =IF(入力シート!S12="","",入力シート!S12) -> 普通畑
B11: 6 | C11: =IF(入力シート!M13="","",入力シート!M13) -> 名山町6 | D11: =IF(入力シート!N13="","",入力シート!N13) -> 新田4 | E11: =IF(入力シート!O13="","",入力シート!O13) -> 1006 | F11: =IF(入力シート!P13="","",入力シート!P13) -> 畑 | G11: =IF(入力シート!Q13="","",入力シート!Q13) -> 600 | H11: =IF(入力シート!R13="","",入力シート!R13) -> 506 | I11: =IF(入力シート!S13="","",入力シート!S13) -> 施設用地
B12: 7 | C12: =IF(入力シート!M14="","",入力シート!M14) -> 名山町7 | D12: =IF(入力シート!N14="","",入力シート!N14) -> 新田5 | E12: =IF(入力シート!O14="","",入力シート!O14) -> 1007 | F12: =IF(入力シート!P14="","",入力シート!P14) -> 樹園地 | G12: =IF(入力シート!Q14="","",入力シート!Q14) -> 600 | H12: =IF(入力シート!R14="","",入力シート!R14) -> 507 | I12: =IF(入力シート!S14="","",入力シート!S14) -> 樹園地
B13: 8 | C13: =IF(入力シート!M15="","",入力シート!M15) -> 名山町8 | D13: =IF(入力シート!N15="","",入力シート!N15) -> 新田6 | E13: =IF(入力シート!O15="","",入力シート!O15) -> 1008 | F13: =IF(入力シート!P15="","",入力シート!P15) -> 田 | G13: =IF(入力シート!Q15="","",入力シート!Q15) -> 600 | H13: =IF(入力シート!R15="","",入力シート!R15) -> 508 | I13: =IF(入力シート!S15="","",入力シート!S15) -> 水田
B14: 9 | C14: =IF(入力シート!M16="","",入力シート!M16) -> 名山町9 | D14: =IF(入力シート!N16="","",入力シート!N16) -> 新田7 | E14: =IF(入力シート!O16="","",入力シート!O16) -> 1009 | F14: =IF(入力シート!P16="","",入力シート!P16) -> 畑 | G14: =IF(入力シート!Q16="","",入力シート!Q16) -> 600 | H14: =IF(入力シート!R16="","",入力シート!R16) -> 509 | I14: =IF(入力シート!S16="","",入力シート!S16) -> 普通畑
B15: 10 | C15: =IF(入力シート!M17="","",入力シート!M17) -> 名山町10 | D15: =IF(入力シート!N17="","",入力シート!N17) -> 新田8 | E15: =IF(入力シート!O17="","",入力シート!O17) -> 1010 | F15: =IF(入力シート!P17="","",入力シート!P17) -> 樹園地 | G15: =IF(入力シート!Q17="","",入力シート!Q17) -> 600 | H15: =IF(入力シート!R17="","",入力シート!R17) -> 510 | I15: =IF(入力シート!S17="","",入力シート!S17) -> 施設用地
B16: 小計 | E16: =IF(E6="","",10-COUNTBLANK(E6:E15)) -> 10 | F16: 筆 | G16: =IF(E6="","",SUM(G6:G15)) -> 8515 | H16: =IF(E6="","",SUM(H6:H15)) -> 7540
B17: 11 | C17: =IF(入力シート!M18="","",入力シート!M18) -> 東開町1 | D17: =IF(入力シート!N18="","",入力シート!N18) -> 山田1 | E17: =IF(入力シート!O18="","",入力シート!O18) -> 2001 | F17: =IF(入力シート!P18="","",入力シート!P18) -> 田 | G17: =IF(入力シート!Q18="","",入力シート!Q18) -> 1000 | H17: =IF(入力シート!R18="","",入力シート!R18) ->  | I17: =IF(入力シート!S18="","",入力シート!S18) -> 施設用地 | J17: =IF(入力シート!T18="","",入力シート!T18) -> 2023-10-01 | K17: =IF(入力シート!U18="","",入力シート!U18) -> 2038-09-30 | L17: =IF(入力シート!V18="","",入力シート!V18) -> 15年 | M17: =IF(C17="","","受託報酬額(円)") -> 受託報酬額(円) | N17: =IF(C17="","","丙") -> 丙 | O17: =IF(C17="","","甲") -> 甲 | P17: =IF(入力シート!X18="","",入力シート!X18) -> 口座振込 | Q17: =IF(入力シート!Y18="","",入力シート!Y18) -> 5 | R17: =IF(C17="","","甲") -> 甲 | S17: =IF(C17="","","丙") -> 丙 | T17: =IF(入力シート!Z18="","",入力シート!Z18) -> 現金払 | U17: =IF(入力シート!AA18="","",入力シート!AA18) -> 11 | V17: =IF(入力シート!F18="","",入力シート!F18) -> 名山 太郎 | W17: =IF(入力シート!G18="","",入力シート!G18) -> 鹿児島市山下町2番2号 | X17: =IF(入力シート!I18="","",入力シート!I18) -> 名山 大作 | Y17: =IF(入力シート!J18="","",入力シート!J18) -> 鹿児島市西田10番１号
B18: 12 | C18: =IF(入力シート!M19="","",入力シート!M19) -> 東開町2 | D18: =IF(入力シート!N19="","",入力シート!N19) -> 山田2 | E18: =IF(入力シート!O19="","",入力シート!O19) -> 2002 | F18: =IF(入力シート!P19="","",入力シート!P19) -> 田 | G18: =IF(入力シート!Q19="","",入力シート!Q19) -> 1600 | H18: =IF(入力シート!R19="","",入力シート!R19) ->  | I18: =IF(入力シート!S19="","",入力シート!S19) -> 普通畑 | M18: =IF(C17="","",入力シート!W18) -> 80000
B19: 13 | C19: =IF(入力シート!M20="","",入力シート!M20) -> 東開町3 | D19: =IF(入力シート!N20="","",入力シート!N20) -> 山田3 | E19: =IF(入力シート!O20="","",入力シート!O20) -> 2003 | F19: =IF(入力シート!P20="","",入力シート!P20) -> 畑 | G19: =IF(入力シート!Q20="","",入力シート!Q20) -> 1700 | H19: =IF(入力シート!R20="","",入力シート!R20) ->  | I19: =IF(入力シート!S20="","",入力シート!S20) -> 水田 | M19: =IF(C17="","","「受託農業経営に係る販売金額」－「受託農業経営に係る受託経費」 共通事項(7)に記載のとおり") -> 「受託農業経営に係る販売金額」－「受託農業経営に係る受託経費」 共通事項(7)に記載のとおり
B20: 14 | C20: =IF(入力シート!M21="","",入力シート!M21) -> 東開町4 | D20: =IF(入力シート!N21="","",入力シート!N21) -> 山田4 | E20: =IF(入力シート!O21="","",入力シート!O21) -> 2004 | F20: =IF(入力シート!P21="","",入力シート!P21) -> 畑 | G20: =IF(入力シート!Q21="","",入力シート!Q21) -> 1800 | H20: =IF(入力シート!R21="","",入力シート!R21) ->  | I20: =IF(入力シート!S21="","",入力シート!S21) -> 水田
B21: 15 | C21: =IF(入力シート!M22="","",入力シート!M22) -> 東開町5 | D21: =IF(入力シート!N22="","",入力シート!N22) -> 山田5 | E21: =IF(入力シート!O22="","",入力シート!O22) -> 2005 | F21: =IF(入力シート!P22="","",入力シート!P22) -> 樹園地 | G21: =IF(入力シート!Q22="","",入力シート!Q22) -> 1900 | H21: =IF(入力シート!R22="","",入力シート!R22) ->  | I21: =IF(入力シート!S22="","",入力シート!S22) -> 普通畑
B22: 16 | C22: =IF(入力シート!M23="","",入力シート!M23) -> 東開町6 | D22: =IF(入力シート!N23="","",入力シート!N23) -> 山田6 | E22: =IF(入力シート!O23="","",入力シート!O23) -> 2006 | F22: =IF(入力シート!P23="","",入力シート!P23) -> 樹園地 | G22: =IF(入力シート!Q23="","",入力シート!Q23) -> 2000 | H22: =IF(入力シート!R23="","",入力シート!R23) ->  | I22: =IF(入力シート!S23="","",入力シート!S23) -> 水田
B23: 17 | C23: =IF(入力シート!M24="","",入力シート!M24) -> 東開町7 | D23: =IF(入力シート!N24="","",入力シート!N24) -> 山田7 | E23: =IF(入力シート!O24="","",入力シート!O24) -> 2007 | F23: =IF(入力シート!P24="","",入力シート!P24) -> 田 | G23: =IF(入力シート!Q24="","",入力シート!Q24) -> 2100 | H23: =IF(入力シート!R24="","",入力シート!R24) ->  | I23: =IF(入力シート!S24="","",入力シート!S24) -> 施設用地
B24: 18 | C24: =IF(入力シート!M25="","",入力シート!M25) -> 東開町8 | D24: =IF(入力シート!N25="","",入力シート!N25) -> 山田8 | E24: =IF(入力シート!O25="","",入力シート!O25) -> 2008 | F24: =IF(入力シート!P25="","",入力シート!P25) -> 畑 | G24: =IF(入力シート!Q25="","",入力シート!Q25) -> 2200 | H24: =IF(入力シート!R25="","",入力シート!R25) ->  | I24: =IF(入力シート!S25="","",入力シート!S25) -> 樹園地
B25: 19 | C25: =IF(入力シート!M26="","",入力シート!M26) -> 東開町9 | D25: =IF(入力シート!N26="","",入力シート!N26) -> 山田9 | E25: =IF(入力シート!O26="","",入力シート!O26) -> 2009 | F25: =IF(入力シート!P26="","",入力シート!P26) -> 樹園地 | G25: =IF(入力シート!Q26="","",入力シート!Q26) -> 2300 | H25: =IF(入力シート!R26="","",入力シート!R26) ->  | I25: =IF(入力シート!S26="","",入力シート!S26) -> 水田
B26: 20 | C26: =IF(入力シート!M27="","",入力シート!M27) -> 東開町10 | D26: =IF(入力シート!N27="","",入力シート!N27) -> 山田10 | E26: =IF(入力シート!O27="","",入力シート!O27) -> 2010 | F26: =IF(入力シート!P27="","",入力シート!P27) -> 田 | G26: =IF(入力シート!Q27="","",入力シート!Q27) -> 2400 | H26: =IF(入力シート!R27="","",入力シート!R27) ->  | I26: =IF(入力シート!S27="","",入力シート!S27) -> 水田
B27: 小計 | E27: =IF(E17="","",10-COUNTBLANK(E17:E26)) -> 10 | F27: 筆 | G27: =IF(E17="","",SUM(G17:G26)) -> 19000 | H27: =IF(E17="","",SUM(H17:H26)) -> 0
B28: 21 | C28: =IF(入力シート!M28="","",入力シート!M28) -> 名山町1 | D28: =IF(入力シート!N28="","",入力シート!N28) -> 名山堀1 | E28: =IF(入力シート!O28="","",入力シート!O28) -> 1001 | F28: =IF(入力シート!P28="","",入力シート!P28) -> 田 | G28: =IF(入力シート!Q28="","",入力シート!Q28) -> 1101 | H28: =IF(入力シート!R28="","",入力シート!R28) -> 1200 | I28: =IF(入力シート!S28="","",入力シート!S28) -> 水田 | J28: =IF(入力シート!T28="","",入力シート!T28) -> 2023-10-01 | K28: =IF(入力シート!U28="","",入力シート!U28) -> 2038-09-30 | L28: =IF(入力シート!V28="","",入力シート!V28) -> 15年 | M28: =IF(C28="","","受託報酬額(円)") -> 受託報酬額(円) | N28: =IF(C28="","","丙") -> 丙 | O28: =IF(C28="","","甲") -> 甲 | P28: =IF(入力シート!X28="","",入力シート!X28) -> 現金払 | Q28: =IF(入力シート!Y28="","",入力シート!Y28) -> 9 | R28: =IF(C28="","","甲") -> 甲 | S28: =IF(C28="","","丙") -> 丙 | T28: =IF(入力シート!Z28="","",入力シート!Z28) -> 口座振込 | U28: =IF(入力シート!AA28="","",入力シート!AA28) -> 12 | V28: =IF(入力シート!F28="","",入力シート!F28) -> 農地 太郎 | W28: =IF(入力シート!G28="","",入力シート!G28) -> 鹿児島市名山町2番2号 | X28: =IF(入力シート!I28="","",入力シート!I28) -> 耕地 大作 | Y28: =IF(入力シート!J28="","",入力シート!J28) -> 鹿児島市鴨池新町10番2号
B29: 22 | C29: =IF(入力シート!M29="","",入力シート!M29) -> 名山町2 | D29: =IF(入力シート!N29="","",入力シート!N29) -> 名山堀2 | E29: =IF(入力シート!O29="","",入力シート!O29) -> 1002 | F29: =IF(入力シート!P29="","",入力シート!P29) -> 田 | G29: =IF(入力シート!Q29="","",入力シート!Q29) -> 1102 | H29: =IF(入力シート!R29="","",入力シート!R29) -> 1300 | I29: =IF(入力シート!S29="","",入力シート!S29) -> 水田 | M29: =IF(C28="","",入力シート!W28) -> 124000
B30: 23 | C30: =IF(入力シート!M30="","",入力シート!M30) -> 名山町3 | D30: =IF(入力シート!N30="","",入力シート!N30) -> 新田1 | E30: =IF(入力シート!O30="","",入力シート!O30) -> 1003 | F30: =IF(入力シート!P30="","",入力シート!P30) -> 畑 | G30: =IF(入力シート!Q30="","",入力シート!Q30) -> 1103 | H30: =IF(入力シート!R30="","",入力シート!R30) ->  | I30: =IF(入力シート!S30="","",入力シート!S30) -> 普通畑 | M30: =IF(C28="","","「受託農業経営に係る販売金額」－「受託農業経営に係る受託経費」 共通事項(7)に記載のとおり") -> 「受託農業経営に係る販売金額」－「受託農業経営に係る受託経費」 共通事項(7)に記載のとおり
B31: 24 | C31: =IF(入力シート!M31="","",入力シート!M31) -> 名山町4 | D31: =IF(入力シート!N31="","",入力シート!N31) -> 新田2 | E31: =IF(入力シート!O31="","",入力シート!O31) -> 1004 | F31: =IF(入力シート!P31="","",入力シート!P31) -> 畑 | G31: =IF(入力シート!Q31="","",入力シート!Q31) -> 1104 | H31: =IF(入力シート!R31="","",入力シート!R31) ->  | I31: =IF(入力シート!S31="","",入力シート!S31) -> 普通畑
B32: 25 | C32: =IF(入力シート!M32="","",入力シート!M32) -> 名山町5 | D32: =IF(入力シート!N32="","",入力シート!N32) -> 新田3 | E32: =IF(入力シート!O32="","",入力シート!O32) -> 1005 | F32: =IF(入力シート!P32="","",入力シート!P32) -> 畑 | G32: =IF(入力シート!Q32="","",入力シート!Q32) -> 1105 | H32: =IF(入力シート!R32="","",入力シート!R32) ->  | I32: =IF(入力シート!S32="","",入力シート!S32) -> 普通畑
B33: 26 | C33: =IF(入力シート!M33="","",入力シート!M33) -> 名山町6 | D33: =IF(入力シート!N33="","",入力シート!N33) -> 新田4 | E33: =IF(入力シート!O33="","",入力シート!O33) -> 1006 | F33: =IF(入力シート!P33="","",入力シート!P33) -> 畑 | G33: =IF(入力シート!Q33="","",入力シート!Q33) -> 506 | H33: =IF(入力シート!R33="","",入力シート!R33) ->  | I33: =IF(入力シート!S33="","",入力シート!S33) -> 施設用地
B34: 27 | C34: =IF(入力シート!M34="","",入力シート!M34) -> 名山町7 | D34: =IF(入力シート!N34="","",入力シート!N34) -> 新田5 | E34: =IF(入力シート!O34="","",入力シート!O34) -> 1007 | F34: =IF(入力シート!P34="","",入力シート!P34) -> 樹園地 | G34: =IF(入力シート!Q34="","",入力シート!Q34) -> 507 | H34: =IF(入力シート!R34="","",入力シート!R34) ->  | I34: =IF(入力シート!S34="","",入力シート!S34) -> 樹園地
B35: 28 | C35: =IF(入力シート!M35="","",入力シート!M35) -> 名山町8 | D35: =IF(入力シート!N35="","",入力シート!N35) -> 新田6 | E35: =IF(入力シート!O35="","",入力シート!O35) -> 1008 | F35: =IF(入力シート!P35="","",入力シート!P35) -> 田 | G35: =IF(入力シート!Q35="","",入力シート!Q35) -> 508 | H35: =IF(入力シート!R35="","",入力シート!R35) ->  | I35: =IF(入力シート!S35="","",入力シート!S35) -> 水田
B36: 29 | C36: =IF(入力シート!M36="","",入力シート!M36) ->  | D36: =IF(入力シート!N36="","",入力シート!N36) ->  | E36: =IF(入力シート!O36="","",入力シート!O36) ->  | F36: =IF(入力シート!P36="","",入力シート!P36) ->  | G36: =IF(入力シート!Q36="","",入力シート!Q36) ->  | H36: =IF(入力シート!R36="","",入力シート!R36) ->  | I36: =IF(入力シート!S36="","",入力シート!S36) -> 
B37: 30 | C37: =IF(入力シート!M37="","",入力シート!M37) ->  | D37: =IF(入力シート!N37="","",入力シート!N37) ->  | E37: =IF(入力シート!O37="","",入力シート!O37) ->  | F37: =IF(入力シート!P37="","",入力シート!P37) ->  | G37: =IF(入力シート!Q37="","",入力シート!Q37) ->  | H37: =IF(入力シート!R37="","",入力シート!R37) ->  | I37: =IF(入力シート!S37="","",入力シート!S37) -> 
B38: 小計 | E38: =IF(E28="","",10-COUNTBLANK(E28:E37)) -> 8 | F38: 筆 | G38: =IF(E28="","",SUM(G28:G37)) -> 7036 | H38: =IF(E28="","",SUM(H28:H37)) -> 2500
B39: 31 | C39: =IF(入力シート!M38="","",入力シート!M38) ->  | D39: =IF(入力シート!N38="","",入力シート!N38) ->  | E39: =IF(入力シート!O38="","",入力シート!O38) ->  | F39: =IF(入力シート!P38="","",入力シート!P38) ->  | G39: =IF(入力シート!Q38="","",入力シート!Q38) ->  | H39: =IF(入力シート!R38="","",入力シート!R38) ->  | I39: =IF(入力シート!S38="","",入力シート!S38) ->  | J39: =IF(入力シート!T38="","",入力シート!T38) ->  | K39: =IF(入力シート!U38="","",入力シート!U38) ->  | L39: =IF(入力シート!V38="","",入力シート!V38) ->  | M39: =IF(C39="","","受託報酬額(円)") ->  | N39: =IF(C39="","","丙") ->  | O39: =IF(C39="","","甲") ->  | P39: =IF(入力シート!X38="","",入力シート!X38) ->  | Q39: =IF(入力シート!Y38="","",入力シート!Y38) ->  | R39: =IF(C39="","","甲") ->  | S39: =IF(C39="","","丙") ->  | T39: =IF(入力シート!Z38="","",入力シート!Z38) ->  | U39: =IF(入力シート!AA38="","",入力シート!AA38) ->  | V39: =IF(入力シート!F38="","",入力シート!F38) ->  | W39: =IF(入力シート!G38="","",入力シート!G38) ->  | X39: =IF(入力シート!I38="","",入力シート!I38) ->  | Y39: =IF(入力シート!J38="","",入力シート!J38) -> 
B40: 32 | C40: =IF(入力シート!M39="","",入力シート!M39) ->  | D40: =IF(入力シート!N39="","",入力シート!N39) ->  | E40: =IF(入力シート!O39="","",入力シート!O39) ->  | F40: =IF(入力シート!P39="","",入力シート!P39) ->  | G40: =IF(入力シート!Q39="","",入力シート!Q39) ->  | H40: =IF(入力シート!R39="","",入力シート!R39) ->  | I40: =IF(入力シート!S39="","",入力シート!S39) ->  | M40: =IF(C39="","",入力シート!W38) -> 
B41: 33 | C41: =IF(入力シート!M40="","",入力シート!M40) ->  | D41: =IF(入力シート!N40="","",入力シート!N40) ->  | E41: =IF(入力シート!O40="","",入力シート!O40) ->  | F41: =IF(入力シート!P40="","",入力シート!P40) ->  | G41: =IF(入力シート!Q40="","",入力シート!Q40) ->  | H41: =IF(入力シート!R40="","",入力シート!R40) ->  | I41: =IF(入力シート!S40="","",入力シート!S40) ->  | M41: =IF(C39="","","「受託農業経営に係る販売金額」－「受託農業経営に係る受託経費」 共通事項(7)に記載のとおり") -> 
B42: 34 | C42: =IF(入力シート!M41="","",入力シート!M41) ->  | D42: =IF(入力シート!N41="","",入力シート!N41) ->  | E42: =IF(入力シート!O41="","",入力シート!O41) ->  | F42: =IF(入力シート!P41="","",入力シート!P41) ->  | G42: =IF(入力シート!Q41="","",入力シート!Q41) ->  | H42: =IF(入力シート!R41="","",入力シート!R41) ->  | I42: =IF(入力シート!S41="","",入力シート!S41) -> 
B43: 35 | C43: =IF(入力シート!M42="","",入力シート!M42) ->  | D43: =IF(入力シート!N42="","",入力シート!N42) ->  | E43: =IF(入力シート!O42="","",入力シート!O42) ->  | F43: =IF(入力シート!P42="","",入力シート!P42) ->  | G43: =IF(入力シート!Q42="","",入力シート!Q42) ->  | H43: =IF(入力シート!R42="","",入力シート!R42) ->  | I43: =IF(入力シート!S42="","",入力シート!S42) -> 
B44: 36 | C44: =IF(入力シート!M43="","",入力シート!M43) ->  | D44: =IF(入力シート!N43="","",入力シート!N43) ->  | E44: =IF(入力シート!O43="","",入力シート!O43) ->  | F44: =IF(入力シート!P43="","",入力シート!P43) ->  | G44: =IF(入力シート!Q43="","",入力シート!Q43) ->  | H44: =IF(入力シート!R43="","",入力シート!R43) ->  | I44: =IF(入力シート!S43="","",入力シート!S43) -> 
B45: 37 | C45: =IF(入力シート!M44="","",入力シート!M44) ->  | D45: =IF(入力シート!N44="","",入力シート!N44) ->  | E45: =IF(入力シート!O44="","",入力シート!O44) ->  | F45: =IF(入力シート!P44="","",入力シート!P44) ->  | G45: =IF(入力シート!Q44="","",入力シート!Q44) ->  | H45: =IF(入力シート!R44="","",入力シート!R44) ->  | I45: =IF(入力シート!S44="","",入力シート!S44) -> 
B46: 38 | C46: =IF(入力シート!M45="","",入力シート!M45) ->  | D46: =IF(入力シート!N45="","",入力シート!N45) ->  | E46: =IF(入力シート!O45="","",入力シート!O45) ->  | F46: =IF(入力シート!P45="","",入力シート!P45) ->  | G46: =IF(入力シート!Q45="","",入力シート!Q45) ->  | H46: =IF(入力シート!R45="","",入力シート!R45) ->  | I46: =IF(入力シート!S45="","",入力シート!S45) -> 
B47: 39 | C47: =IF(入力シート!M46="","",入力シート!M46) ->  | D47: =IF(入力シート!N46="","",入力シート!N46) ->  | E47: =IF(入力シート!O46="","",入力シート!O46) ->  | F47: =IF(入力シート!P46="","",入力シート!P46) ->  | G47: =IF(入力シート!Q46="","",入力シート!Q46) ->  | H47: =IF(入力シート!R46="","",入力シート!R46) ->  | I47: =IF(入力シート!S46="","",入力シート!S46) -> 
B48: 40 | C48: =IF(入力シート!M47="","",入力シート!M47) ->  | D48: =IF(入力シート!N47="","",入力シート!N47) ->  | E48: =IF(入力シート!O47="","",入力シート!O47) ->  | F48: =IF(入力シート!P47="","",入力シート!P47) ->  | G48: =IF(入力シート!Q47="","",入力シート!Q47) ->  | H48: =IF(入力シート!R47="","",入力シート!R47) ->  | I48: =IF(入力シート!S47="","",入力シート!S47) -> 
B49: 小計 | E49: =IF(E39="","",10-COUNTBLANK(E39:E48)) ->  | F49: 筆 | G49: =IF(E39="","",SUM(G39:G48)) ->  | H49: =IF(E39="","",SUM(H39:H48)) -> 
B50: 41 | C50: =IF(入力シート!M48="","",入力シート!M48) ->  | D50: =IF(入力シート!N48="","",入力シート!N48) ->  | E50: =IF(入力シート!O48="","",入力シート!O48) ->  | F50: =IF(入力シート!P48="","",入力シート!P48) ->  | G50: =IF(入力シート!Q48="","",入力シート!Q48) ->  | H50: =IF(入力シート!R48="","",入力シート!R48) ->  | I50: =IF(入力シート!S48="","",入力シート!S48) ->  | J50: =IF(入力シート!T48="","",入力シート!T48) ->  | K50: =IF(入力シート!U48="","",入力シート!U48) ->  | L50: =IF(入力シート!V48="","",入力シート!V48) ->  | M50: =IF(C50="","","受託報酬額(円)") ->  | N50: =IF(C50="","","丙") ->  | O50: =IF(C50="","","甲") ->  | P50: =IF(入力シート!X48="","",入力シート!X48) ->  | Q50: =IF(入力シート!Y48="","",入力シート!Y48) ->  | R50: =IF(C50="","","甲") ->  | S50: =IF(C50="","","丙") ->  | T50: =IF(入力シート!Z48="","",入力シート!Z48) ->  | U50: =IF(入力シート!AA48="","",入力シート!AA48) ->  | V50: =IF(入力シート!F48="","",入力シート!F48) ->  | W50: =IF(入力シート!G48="","",入力シート!G48) ->  | X50: =IF(入力シート!I48="","",入力シート!I48) ->  | Y50: =IF(入力シート!J48="","",入力シート!J48) -> 
B51: 42 | C51: =IF(入力シート!M49="","",入力シート!M49) ->  | D51: =IF(入力シート!N49="","",入力シート!N49) ->  | E51: =IF(入力シート!O49="","",入力シート!O49) ->  | F51: =IF(入力シート!P49="","",入力シート!P49) ->  | G51: =IF(入力シート!Q49="","",入力シート!Q49) ->  | H51: =IF(入力シート!R49="","",入力シート!R49) ->  | I51: =IF(入力シート!S49="","",入力シート!S49) ->  | M51: =IF(C50="","",入力シート!W48) -> 
B52: 43 | C52: =IF(入力シート!M50="","",入力シート!M50) ->  | D52: =IF(入力シート!N50="","",入力シート!N50) ->  | E52: =IF(入力シート!O50="","",入力シート!O50) ->  | F52: =IF(入力シート!P50="","",入力シート!P50) ->  | G52: =IF(入力シート!Q50="","",入力シート!Q50) ->  | H52: =IF(入力シート!R50="","",入力シート!R50) ->  | I52: =IF(入力シート!S50="","",入力シート!S50) ->  | M52: =IF(C50="","","「受託農業経営に係る販売金額」－「受託農業経営に係る受託経費」 共通事項(7)に記載のとおり") -> 
B53: 44 | C53: =IF(入力シート!M51="","",入力シート!M51) ->  | D53: =IF(入力シート!N51="","",入力シート!N51) ->  | E53: =IF(入力シート!O51="","",入力シート!O51) ->  | F53: =IF(入力シート!P51="","",入力シート!P51) ->  | G53: =IF(入力シート!Q51="","",入力シート!Q51) ->  | H53: =IF(入力シート!R51="","",入力シート!R51) ->  | I53: =IF(入力シート!S51="","",入力シート!S51) -> 
B54: 45 | C54: =IF(入力シート!M52="","",入力シート!M52) ->  | D54: =IF(入力シート!N52="","",入力シート!N52) ->  | E54: =IF(入力シート!O52="","",入力シート!O52) ->  | F54: =IF(入力シート!P52="","",入力シート!P52) ->  | G54: =IF(入力シート!Q52="","",入力シート!Q52) ->  | H54: =IF(入力シート!R52="","",入力シート!R52) ->  | I54: =IF(入力シート!S52="","",入力シート!S52) -> 
B55: 46 | C55: =IF(入力シート!M53="","",入力シート!M53) ->  | D55: =IF(入力シート!N53="","",入力シート!N53) ->  | E55: =IF(入力シート!O53="","",入力シート!O53) ->  | F55: =IF(入力シート!P53="","",入力シート!P53) ->  | G55: =IF(入力シート!Q53="","",入力シート!Q53) ->  | H55: =IF(入力シート!R53="","",入力シート!R53) ->  | I55: =IF(入力シート!S53="","",入力シート!S53) -> 
B56: 47 | C56: =IF(入力シート!M54="","",入力シート!M54) ->  | D56: =IF(入力シート!N54="","",入力シート!N54) ->  | E56: =IF(入力シート!O54="","",入力シート!O54) ->  | F56: =IF(入力シート!P54="","",入力シート!P54) ->  | G56: =IF(入力シート!Q54="","",入力シート!Q54) ->  | H56: =IF(入力シート!R54="","",入力シート!R54) ->  | I56: =IF(入力シート!S54="","",入力シート!S54) -> 
B57: 48 | C57: =IF(入力シート!M55="","",入力シート!M55) ->  | D57: =IF(入力シート!N55="","",入力シート!N55) ->  | E57: =IF(入力シート!O55="","",入力シート!O55) ->  | F57: =IF(入力シート!P55="","",入力シート!P55) ->  | G57: =IF(入力シート!Q55="","",入力シート!Q55) ->  | H57: =IF(入力シート!R55="","",入力シート!R55) ->  | I57: =IF(入力シート!S55="","",入力シート!S55) -> 
B58: 49 | C58: =IF(入力シート!M56="","",入力シート!M56) ->  | D58: =IF(入力シート!N56="","",入力シート!N56) ->  | E58: =IF(入力シート!O56="","",入力シート!O56) ->  | F58: =IF(入力シート!P56="","",入力シート!P56) ->  | G58: =IF(入力シート!Q56="","",入力シート!Q56) ->  | H58: =IF(入力シート!R56="","",入力シート!R56) ->  | I58: =IF(入力シート!S56="","",入力シート!S56) -> 
B59: 50 | C59: =IF(入力シート!M57="","",入力シート!M57) ->  | D59: =IF(入力シート!N57="","",入力シート!N57) ->  | E59: =IF(入力シート!O57="","",入力シート!O57) ->  | F59: =IF(入力シート!P57="","",入力シート!P57) ->  | G59: =IF(入力シート!Q57="","",入力シート!Q57) ->  | H59: =IF(入力シート!R57="","",入力シート!R57) ->  | I59: =IF(入力シート!S57="","",入力シート!S57) -> 
B60: 小計 | E60: =IF(E50="","",10-COUNTBLANK(E50:E59)) ->  | F60: 筆 | G60: =IF(E50="","",SUM(G50:G59)) ->  | H60: =IF(E50="","",SUM(H50:H59)) -> 
B61: 51 | C61: =IF(入力シート!M58="","",入力シート!M58) ->  | D61: =IF(入力シート!N58="","",入力シート!N58) ->  | E61: =IF(入力シート!O58="","",入力シート!O58) ->  | F61: =IF(入力シート!P58="","",入力シート!P58) ->  | G61: =IF(入力シート!Q58="","",入力シート!Q58) ->  | H61: =IF(入力シート!R58="","",入力シート!R58) ->  | I61: =IF(入力シート!S58="","",入力シート!S58) ->  | J61: =IF(入力シート!T58="","",入力シート!T58) ->  | K61: =IF(入力シート!U58="","",入力シート!U58) ->  | L61: =IF(入力シート!V58="","",入力シート!V58) ->  | M61: =IF(C61="","","受託報酬額(円)") ->  | N61: =IF(C61="","","丙") ->  | O61: =IF(C61="","","甲") ->  | P61: =IF(入力シート!X58="","",入力シート!X58) ->  | Q61: =IF(入力シート!Y58="","",入力シート!Y58) ->  | R61: =IF(C61="","","甲") ->  | S61: =IF(C61="","","丙") ->  | T61: =IF(入力シート!Z58="","",入力シート!Z58) ->  | U61: =IF(入力シート!AA58="","",入力シート!AA58) ->  | V61: =IF(入力シート!F58="","",入力シート!F58) ->  | W61: =IF(入力シート!G58="","",入力シート!G58) ->  | X61: =IF(入力シート!I58="","",入力シート!I58) ->  | Y61: =IF(入力シート!J58="","",入力シート!J58) -> 
B62: 52 | C62: =IF(入力シート!M59="","",入力シート!M59) ->  | D62: =IF(入力シート!N59="","",入力シート!N59) ->  | E62: =IF(入力シート!O59="","",入力シート!O59) ->  | F62: =IF(入力シート!P59="","",入力シート!P59) ->  | G62: =IF(入力シート!Q59="","",入力シート!Q59) ->  | H62: =IF(入力シート!R59="","",入力シート!R59) ->  | I62: =IF(入力シート!S59="","",入力シート!S59) ->  | M62: =IF(C61="","",入力シート!W58) -> 
B63: 53 | C63: =IF(入力シート!M60="","",入力シート!M60) ->  | D63: =IF(入力シート!N60="","",入力シート!N60) ->  | E63: =IF(入力シート!O60="","",入力シート!O60) ->  | F63: =IF(入力シート!P60="","",入力シート!P60) ->  | G63: =IF(入力シート!Q60="","",入力シート!Q60) ->  | H63: =IF(入力シート!R60="","",入力シート!R60) ->  | I63: =IF(入力シート!S60="","",入力シート!S60) ->  | M63: =IF(C61="","","「受託農業経営に係る販売金額」－「受託農業経営に係る受託経費」 共通事項(7)に記載のとおり") -> 
B64: 54 | C64: =IF(入力シート!M61="","",入力シート!M61) ->  | D64: =IF(入力シート!N61="","",入力シート!N61) ->  | E64: =IF(入力シート!O61="","",入力シート!O61) ->  | F64: =IF(入力シート!P61="","",入力シート!P61) ->  | G64: =IF(入力シート!Q61="","",入力シート!Q61) ->  | H64: =IF(入力シート!R61="","",入力シート!R61) ->  | I64: =IF(入力シート!S61="","",入力シート!S61) -> 
B65: 55 | C65: =IF(入力シート!M62="","",入力シート!M62) ->  | D65: =IF(入力シート!N62="","",入力シート!N62) ->  | E65: =IF(入力シート!O62="","",入力シート!O62) ->  | F65: =IF(入力シート!P62="","",入力シート!P62) ->  | G65: =IF(入力シート!Q62="","",入力シート!Q62) ->  | H65: =IF(入力シート!R62="","",入力シート!R62) ->  | I65: =IF(入力シート!S62="","",入力シート!S62) -> 
B66: 56 | C66: =IF(入力シート!M63="","",入力シート!M63) ->  | D66: =IF(入力シート!N63="","",入力シート!N63) ->  | E66: =IF(入力シート!O63="","",入力シート!O63) ->  | F66: =IF(入力シート!P63="","",入力シート!P63) ->  | G66: =IF(入力シート!Q63="","",入力シート!Q63) ->  | H66: =IF(入力シート!R63="","",入力シート!R63) ->  | I66: =IF(入力シート!S63="","",入力シート!S63) -> 
B67: 57 | C67: =IF(入力シート!M64="","",入力シート!M64) ->  | D67: =IF(入力シート!N64="","",入力シート!N64) ->  | E67: =IF(入力シート!O64="","",入力シート!O64) ->  | F67: =IF(入力シート!P64="","",入力シート!P64) ->  | G67: =IF(入力シート!Q64="","",入力シート!Q64) ->  | H67: =IF(入力シート!R64="","",入力シート!R64) ->  | I67: =IF(入力シート!S64="","",入力シート!S64) -> 
B68: 58 | C68: =IF(入力シート!M65="","",入力シート!M65) ->  | D68: =IF(入力シート!N65="","",入力シート!N65) ->  | E68: =IF(入力シート!O65="","",入力シート!O65) ->  | F68: =IF(入力シート!P65="","",入力シート!P65) ->  | G68: =IF(入力シート!Q65="","",入力シート!Q65) ->  | H68: =IF(入力シート!R65="","",入力シート!R65) ->  | I68: =IF(入力シート!S65="","",入力シート!S65) -> 
B69: 59 | C69: =IF(入力シート!M66="","",入力シート!M66) ->  | D69: =IF(入力シート!N66="","",入力シート!N66) ->  | E69: =IF(入力シート!O66="","",入力シート!O66) ->  | F69: =IF(入力シート!P66="","",入力シート!P66) ->  | G69: =IF(入力シート!Q66="","",入力シート!Q66) ->  | H69: =IF(入力シート!R66="","",入力シート!R66) ->  | I69: =IF(入力シート!S66="","",入力シート!S66) -> 
B70: 60 | C70: =IF(入力シート!M67="","",入力シート!M67) ->  | D70: =IF(入力シート!N67="","",入力シート!N67) ->  | E70: =IF(入力シート!O67="","",入力シート!O67) ->  | F70: =IF(入力シート!P67="","",入力シート!P67) ->  | G70: =IF(入力シート!Q67="","",入力シート!Q67) ->  | H70: =IF(入力シート!R67="","",入力シート!R67) ->  | I70: =IF(入力シート!S67="","",入力シート!S67) -> 
B71: 小計 | E71: =IF(E61="","",10-COUNTBLANK(E61:E70)) ->  | F71: 筆 | G71: =IF(E61="","",SUM(G61:G70)) ->  | H71: =IF(E61="","",SUM(H61:H70)) -> 
B72: 61 | C72: =IF(入力シート!M68="","",入力シート!M68) ->  | D72: =IF(入力シート!N68="","",入力シート!N68) ->  | E72: =IF(入力シート!O68="","",入力シート!O68) ->  | F72: =IF(入力シート!P68="","",入力シート!P68) ->  | G72: =IF(入力シート!Q68="","",入力シート!Q68) ->  | H72: =IF(入力シート!R68="","",入力シート!R68) ->  | I72: =IF(入力シート!S68="","",入力シート!S68) ->  | J72: =IF(入力シート!T68="","",入力シート!T68) ->  | K72: =IF(入力シート!U68="","",入力シート!U68) ->  | L72: =IF(入力シート!V68="","",入力シート!V68) ->  | M72: =IF(C72="","","受託報酬額(円)") ->  | N72: =IF(C72="","","丙") ->  | O72: =IF(C72="","","甲") ->  | P72: =IF(入力シート!X68="","",入力シート!X68) ->  | Q72: =IF(入力シート!Y68="","",入力シート!Y68) ->  | R72: =IF(C72="","","甲") ->  | S72: =IF(C72="","","丙") ->  | T72: =IF(入力シート!Z68="","",入力シート!Z68) ->  | U72: =IF(入力シート!AA68="","",入力シート!AA68) ->  | V72: =IF(入力シート!F68="","",入力シート!F68) ->  | W72: =IF(入力シート!G68="","",入力シート!G68) ->  | X72: =IF(入力シート!I68="","",入力シート!I68) ->  | Y72: =IF(入力シート!J68="","",入力シート!J68) -> 
B73: 62 | C73: =IF(入力シート!M69="","",入力シート!M69) ->  | D73: =IF(入力シート!N69="","",入力シート!N69) ->  | E73: =IF(入力シート!O69="","",入力シート!O69) ->  | F73: =IF(入力シート!P69="","",入力シート!P69) ->  | G73: =IF(入力シート!Q69="","",入力シート!Q69) ->  | H73: =IF(入力シート!R69="","",入力シート!R69) ->  | I73: =IF(入力シート!S69="","",入力シート!S69) ->  | M73: =IF(C72="","",入力シート!W68) -> 
B74: 63 | C74: =IF(入力シート!M70="","",入力シート!M70) ->  | D74: =IF(入力シート!N70="","",入力シート!N70) ->  | E74: =IF(入力シート!O70="","",入力シート!O70) ->  | F74: =IF(入力シート!P70="","",入力シート!P70) ->  | G74: =IF(入力シート!Q70="","",入力シート!Q70) ->  | H74: =IF(入力シート!R70="","",入力シート!R70) ->  | I74: =IF(入力シート!S70="","",入力シート!S70) ->  | M74: =IF(C72="","","「受託農業経営に係る販売金額」－「受託農業経営に係る受託経費」 共通事項(7)に記載のとおり") -> 
B75: 64 | C75: =IF(入力シート!M71="","",入力シート!M71) ->  | D75: =IF(入力シート!N71="","",入力シート!N71) ->  | E75: =IF(入力シート!O71="","",入力シート!O71) ->  | F75: =IF(入力シート!P71="","",入力シート!P71) ->  | G75: =IF(入力シート!Q71="","",入力シート!Q71) ->  | H75: =IF(入力シート!R71="","",入力シート!R71) ->  | I75: =IF(入力シート!S71="","",入力シート!S71) -> 
B76: 65 | C76: =IF(入力シート!M72="","",入力シート!M72) ->  | D76: =IF(入力シート!N72="","",入力シート!N72) ->  | E76: =IF(入力シート!O72="","",入力シート!O72) ->  | F76: =IF(入力シート!P72="","",入力シート!P72) ->  | G76: =IF(入力シート!Q72="","",入力シート!Q72) ->  | H76: =IF(入力シート!R72="","",入力シート!R72) ->  | I76: =IF(入力シート!S72="","",入力シート!S72) -> 
B77: 66 | C77: =IF(入力シート!M73="","",入力シート!M73) ->  | D77: =IF(入力シート!N73="","",入力シート!N73) ->  | E77: =IF(入力シート!O73="","",入力シート!O73) ->  | F77: =IF(入力シート!P73="","",入力シート!P73) ->  | G77: =IF(入力シート!Q73="","",入力シート!Q73) ->  | H77: =IF(入力シート!R73="","",入力シート!R73) ->  | I77: =IF(入力シート!S73="","",入力シート!S73) -> 
B78: 67 | C78: =IF(入力シート!M74="","",入力シート!M74) ->  | D78: =IF(入力シート!N74="","",入力シート!N74) ->  | E78: =IF(入力シート!O74="","",入力シート!O74) ->  | F78: =IF(入力シート!P74="","",入力シート!P74) ->  | G78: =IF(入力シート!Q74="","",入力シート!Q74) ->  | H78: =IF(入力シート!R74="","",入力シート!R74) ->  | I78: =IF(入力シート!S74="","",入力シート!S74) -> 
B79: 68 | C79: =IF(入力シート!M75="","",入力シート!M75) ->  | D79: =IF(入力シート!N75="","",入力シート!N75) ->  | E79: =IF(入力シート!O75="","",入力シート!O75) ->  | F79: =IF(入力シート!P75="","",入力シート!P75) ->  | G79: =IF(入力シート!Q75="","",入力シート!Q75) ->  | H79: =IF(入力シート!R75="","",入力シート!R75) ->  | I79: =IF(入力シート!S75="","",入力シート!S75) -> 
B80: 69 | C80: =IF(入力シート!M76="","",入力シート!M76) ->  | D80: =IF(入力シート!N76="","",入力シート!N76) ->  | E80: =IF(入力シート!O76="","",入力シート!O76) ->  | F80: =IF(入力シート!P76="","",入力シート!P76) ->  | G80: =IF(入力シート!Q76="","",入力シート!Q76) ->  | H80: =IF(入力シート!R76="","",入力シート!R76) ->  | I80: =IF(入力シート!S76="","",入力シート!S76) -> 
B81: 70 | C81: =IF(入力シート!M77="","",入力シート!M77) ->  | D81: =IF(入力シート!N77="","",入力シート!N77) ->  | E81: =IF(入力シート!O77="","",入力シート!O77) ->  | F81: =IF(入力シート!P77="","",入力シート!P77) ->  | G81: =IF(入力シート!Q77="","",入力シート!Q77) ->  | H81: =IF(入力シート!R77="","",入力シート!R77) ->  | I81: =IF(入力シート!S77="","",入力シート!S77) -> 
B82: 小計 | E82: =IF(E72="","",10-COUNTBLANK(E72:E81)) ->  | F82: 筆 | G82: =IF(E72="","",SUM(G72:G81)) ->  | H82: =IF(E72="","",SUM(H72:H81)) -> 
B83: 71 | C83: =IF(入力シート!M78="","",入力シート!M78) ->  | D83: =IF(入力シート!N78="","",入力シート!N78) ->  | E83: =IF(入力シート!O78="","",入力シート!O78) ->  | F83: =IF(入力シート!P78="","",入力シート!P78) ->  | G83: =IF(入力シート!Q78="","",入力シート!Q78) ->  | H83: =IF(入力シート!R78="","",入力シート!R78) ->  | I83: =IF(入力シート!S78="","",入力シート!S78) ->  | J83: =IF(入力シート!T78="","",入力シート!T78) ->  | K83: =IF(入力シート!U78="","",入力シート!U78) ->  | L83: =IF(入力シート!V78="","",入力シート!V78) ->  | M83: =IF(C83="","","受託報酬額(円)") ->  | N83: =IF(C83="","","丙") ->  | O83: =IF(C83="","","甲") ->  | P83: =IF(入力シート!X78="","",入力シート!X78) ->  | Q83: =IF(入力シート!Y78="","",入力シート!Y78) ->  | R83: =IF(C83="","","甲") ->  | S83: =IF(C83="","","丙") ->  | T83: =IF(入力シート!Z78="","",入力シート!Z78) ->  | U83: =IF(入力シート!AA78="","",入力シート!AA78) ->  | V83: =IF(入力シート!F78="","",入力シート!F78) ->  | W83: =IF(入力シート!G78="","",入力シート!G78) ->  | X83: =IF(入力シート!I78="","",入力シート!I78) ->  | Y83: =IF(入力シート!J78="","",入力シート!J78) -> 
B84: 72 | C84: =IF(入力シート!M79="","",入力シート!M79) ->  | D84: =IF(入力シート!N79="","",入力シート!N79) ->  | E84: =IF(入力シート!O79="","",入力シート!O79) ->  | F84: =IF(入力シート!P79="","",入力シート!P79) ->  | G84: =IF(入力シート!Q79="","",入力シート!Q79) ->  | H84: =IF(入力シート!R79="","",入力シート!R79) ->  | I84: =IF(入力シート!S79="","",入力シート!S79) ->  | M84: =IF(C83="","",入力シート!W78) -> 
B85: 73 | C85: =IF(入力シート!M80="","",入力シート!M80) ->  | D85: =IF(入力シート!N80="","",入力シート!N80) ->  | E85: =IF(入力シート!O80="","",入力シート!O80) ->  | F85: =IF(入力シート!P80="","",入力シート!P80) ->  | G85: =IF(入力シート!Q80="","",入力シート!Q80) ->  | H85: =IF(入力シート!R80="","",入力シート!R80) ->  | I85: =IF(入力シート!S80="","",入力シート!S80) ->  | M85: =IF(C83="","","「受託農業経営に係る販売金額」－「受託農業経営に係る受託経費」 共通事項(7)に記載のとおり") -> 
B86: 74 | C86: =IF(入力シート!M81="","",入力シート!M81) ->  | D86: =IF(入力シート!N81="","",入力シート!N81) ->  | E86: =IF(入力シート!O81="","",入力シート!O81) ->  | F86: =IF(入力シート!P81="","",入力シート!P81) ->  | G86: =IF(入力シート!Q81="","",入力シート!Q81) ->  | H86: =IF(入力シート!R81="","",入力シート!R81) ->  | I86: =IF(入力シート!S81="","",入力シート!S81) -> 
B87: 75 | C87: =IF(入力シート!M82="","",入力シート!M82) ->  | D87: =IF(入力シート!N82="","",入力シート!N82) ->  | E87: =IF(入力シート!O82="","",入力シート!O82) ->  | F87: =IF(入力シート!P82="","",入力シート!P82) ->  | G87: =IF(入力シート!Q82="","",入力シート!Q82) ->  | H87: =IF(入力シート!R82="","",入力シート!R82) ->  | I87: =IF(入力シート!S82="","",入力シート!S82) -> 
B88: 76 | C88: =IF(入力シート!M83="","",入力シート!M83) ->  | D88: =IF(入力シート!N83="","",入力シート!N83) ->  | E88: =IF(入力シート!O83="","",入力シート!O83) ->  | F88: =IF(入力シート!P83="","",入力シート!P83) ->  | G88: =IF(入力シート!Q83="","",入力シート!Q83) ->  | H88: =IF(入力シート!R83="","",入力シート!R83) ->  | I88: =IF(入力シート!S83="","",入力シート!S83) -> 
B89: 77 | C89: =IF(入力シート!M84="","",入力シート!M84) ->  | D89: =IF(入力シート!N84="","",入力シート!N84) ->  | E89: =IF(入力シート!O84="","",入力シート!O84) ->  | F89: =IF(入力シート!P84="","",入力シート!P84) ->  | G89: =IF(入力シート!Q84="","",入力シート!Q84) ->  | H89: =IF(入力シート!R84="","",入力シート!R84) ->  | I89: =IF(入力シート!S84="","",入力シート!S84) -> 
B90: 78 | C90: =IF(入力シート!M85="","",入力シート!M85) ->  | D90: =IF(入力シート!N85="","",入力シート!N85) ->  | E90: =IF(入力シート!O85="","",入力シート!O85) ->  | F90: =IF(入力シート!P85="","",入力シート!P85) ->  | G90: =IF(入力シート!Q85="","",入力シート!Q85) ->  | H90: =IF(入力シート!R85="","",入力シート!R85) ->  | I90: =IF(入力シート!S85="","",入力シート!S85) -> 
B91: 79 | C91: =IF(入力シート!M86="","",入力シート!M86) ->  | D91: =IF(入力シート!N86="","",入力シート!N86) ->  | E91: =IF(入力シート!O86="","",入力シート!O86) ->  | F91: =IF(入力シート!P86="","",入力シート!P86) ->  | G91: =IF(入力シート!Q86="","",入力シート!Q86) ->  | H91: =IF(入力シート!R86="","",入力シート!R86) ->  | I91: =IF(入力シート!S86="","",入力シート!S86) -> 
B92: 80 | C92: =IF(入力シート!M87="","",入力シート!M87) ->  | D92: =IF(入力シート!N87="","",入力シート!N87) ->  | E92: =IF(入力シート!O87="","",入力シート!O87) ->  | F92: =IF(入力シート!P87="","",入力シート!P87) ->  | G92: =IF(入力シート!Q87="","",入力シート!Q87) ->  | H92: =IF(入力シート!R87="","",入力シート!R87) ->  | I92: =IF(入力シート!S87="","",入力シート!S87) -> 
B93: 小計 | E93: =IF(E83="","",10-COUNTBLANK(E83:E92)) ->  | F93: 筆 | G93: =IF(E83="","",SUM(G83:G92)) ->  | H93: =IF(E83="","",SUM(H83:H92)) -> 
